fUST/lending_fUST_20250520
["ID","MTS","AMOUNT","RATE_DAILY","PERIOD"]
[361669436,1747678274171,-1001.59840166,0.00020316,2]
[361669437,1747678274180,-1000.0,0.00020316,2]
[361669438,1747678274189,-2000.0,0.00020316,2]
[361669439,1747678274199,-4854.67001534,0.00020348,3]
[361669440,1747678274208,-10872.38156819,0.00020404,2]
[361669441,1747678274218,-500.0,0.00020405,2]
[361669442,1747678274228,-223.0315306,0.00020448,2]
[361669443,1747678274237,-151.0,0.00020448,2]
[361669444,1747678274248,-1000.0,0.00020458,3]
[361669445,1747678274258,-500.0,0.00020505,2]
[361669446,1747678274268,-302.34534111,0.00020505,2]
[361669447,1747678274277,-500.0,0.00020505,2]
[361669448,1747678274286,-500.0,0.00020505,2]
[361669449,1747678274296,-500.0,0.00020505,2]
[361669450,1747678274305,-500.0,0.00020505,2]
[361669451,1747678274314,-500.3371984,0.00020505,2]
[361669452,1747678274323,-500.0,0.00020505,2]
[361669453,1747678274332,-600.0,0.00020505,2]
[361669454,1747678274341,-500.0,0.0002051,2]
[361669455,1747678274351,-500.0,0.0002051,2]
[361669456,1747678274360,-500.0,0.0002053,2]
[361669457,1747678274369,-500.0,0.00020545,2]
[361669458,1747678274383,-500.68900417,0.00020545,2]
[361669459,1747678274392,-500.0,0.00020545,2]
[361669460,1747678274402,-500.0,0.00020545,2]
[361669461,1747678274411,-500.0,0.00020545,2]
[361669462,1747678274420,-500.0,0.00020545,2]
[361669463,1747678274430,-500.0,0.00020545,2]
[361669464,1747678274439,-500.0,0.00020545,2]
[361669465,1747678274449,-500.0,0.00020545,2]
[361669466,1747678274574,-500.0,0.00020545,2]
[361669467,1747678274585,-500.0,0.00020545,2]
[361669468,1747678274595,-408.82362537,0.00020545,2]
[361669469,1747678274606,-271.68816185,0.00020545,2]
[361669470,1747678274615,-620.4297007,0.00020545,2]
[361669471,1747678274626,-500.0,0.00020545,2]
[361669472,1747678274636,-500.0,0.00020545,2]
[361669473,1747678274645,-517.45561311,0.00020545,2]
[361669474,1747678274655,-500.0,0.00020545,2]
[361669475,1747678274664,-500.15290724,0.00020545,2]
[361669476,1747678274675,-500.0,0.00020545,2]
[361669477,1747678274684,-500.0,0.00020545,2]
[361669478,1747678274694,-500.0,0.00020545,2]
[361669479,1747678274703,-152.13202529,0.00020545,2]
[361669480,1747678274713,-555.78840794,0.00020545,2]
[361669481,1747678274722,-500.0,0.00020545,2]
[361669482,1747678274732,-513.75909431,0.00020545,2]
[361669483,1747678274742,-500.0,0.00020545,2]
[361669484,1747678274751,-500.0,0.00020545,2]
[361669485,1747678274761,-500.0,0.00020545,2]
[361669486,1747678274770,-171.00876857,0.00020545,2]
[361669487,1747678274780,-500.0,0.00020545,2]
[361669488,1747678274789,-500.0,0.00020545,2]
[361669489,1747678274802,-500.0745921,0.00020545,2]
[361669490,1747678274815,-500.0,0.00020545,2]
[361669491,1747678274825,-500.0,0.00020545,2]
[361669492,1747678274835,-500.0,0.00020545,2]
[361669493,1747678274844,-430.0,0.00020547,2]
[361669494,1747678274854,-505.47309806,0.00020547,2]
[361669495,1747678274863,-499.51,0.00020547,2]
[361669496,1747678274872,-686.82,0.00020547,2]
[361669497,1747678274882,-430.0,0.00020547,2]
[361669498,1747678274892,-430.0,0.00020547,2]
[361669499,1747678274902,-776.59,0.00020547,2]
[361669500,1747678274911,-430.0,0.00020547,2]
[361669501,1747678274921,-681.39,0.00020547,2]
[361669502,1747678274930,-430.0,0.00020547,2]
[361669503,1747678274940,-516.86,0.00020547,2]
[361669504,1747678274949,-629.1,0.00020547,2]
[361669505,1747678274958,-430.0,0.00020547,2]
[361669506,1747678274968,-1132.44,0.00020547,2]
[361669507,1747678274977,-430.0,0.00020547,2]
[361669508,1747678274987,-852.15,0.00020547,2]
[361669509,1747678274996,-875.09,0.00020547,2]
[361669510,1747678275005,-605.64,0.00020547,2]
[361669511,1747678275014,-430.0,0.00020547,2]
[361669512,1747678275023,-430.0,0.00020547,2]
[361669513,1747678275032,-430.0,0.00020547,2]
[361669514,1747678275042,-193.05756145,0.00020547,2]
[361669515,1747678275051,-545.76,0.00020547,2]
[361669516,1747678275061,-430.0,0.00020547,2]
[361669517,1747678275071,-430.0,0.00020547,2]
[361669518,1747678275080,-430.0,0.00020547,2]
[361669519,1747678275090,-430.0,0.00020547,2]
[361669520,1747678275100,-671.94,0.00020547,2]
[361669521,1747678275109,-701.04,0.00020547,2]
[361669522,1747678275119,-430.0,0.00020547,2]
[361669523,1747678275129,-575.34,0.00020547,2]
[361669524,1747678275138,-430.0,0.00020547,2]
[361669525,1747678275147,-433.77,0.00020547,2]
[361669526,1747678275156,-430.0,0.00020547,2]
[361669527,1747678275165,-430.0,0.00020547,2]
[361669528,1747678275175,-430.0,0.00020547,2]
[361669529,1747678275184,-430.0,0.00020547,2]
[361669530,1747678275193,-439.55,0.00020547,2]
[361669531,1747678275203,-430.0,0.00020547,2]
[361669532,1747678275212,-451.43,0.00020547,2]
[361669533,1747678275221,-430.0,0.00020547,2]
[361669534,1747678275230,-430.0,0.00020547,2]
[361669535,1747678275240,-745.65,0.00020547,2]
[361669536,1747678275250,-430.0,0.00020547,2]
[361669537,1747678275261,-430.0,0.00020547,2]
[361669538,1747678275270,-430.0,0.00020547,2]
[361669539,1747678275279,-430.0,0.00020547,2]
[361669540,1747678275288,-438.7,0.00020547,2]
[361669541,1747678275297,-434.58,0.00020547,2]
[361669542,1747678275306,-430.0,0.00020547,2]
[361669543,1747678275315,-430.0,0.00020547,2]
[361669544,1747678275324,-1375.68,0.00020547,2]
[361669545,1747678275333,-430.0,0.00020547,2]
[361669546,1747678275343,-430.0,0.00020547,2]
[361669547,1747678275352,-551.59,0.00020547,2]
[361669548,1747678275361,-430.0,0.00020547,2]
[361669549,1747678275371,-430.0,0.00020547,2]
[361669550,1747678275380,-430.0,0.00020547,2]
[361669551,1747678275389,-430.0,0.00020547,2]
[361669552,1747678275398,-530.62,0.00020547,2]
[361669553,1747678275407,-430.0,0.00020547,2]
[361669554,1747678275416,-2065.45,0.00020547,2]
[361669555,1747678275426,-430.0,0.00020547,2]
[361669556,1747678275435,-430.0,0.00020547,2]
[361669557,1747678275444,-430.0,0.00020547,2]
[361669558,1747678275453,-2491.97,0.00020547,2]
[361669559,1747678275462,-864.52,0.00020547,2]
[361669560,1747678275471,-430.0,0.00020547,2]
[361669561,1747678275480,-637.32,0.00020547,2]
[361669562,1747678275490,-1871.71,0.00020547,2]
[361669563,1747678275501,-4063.35,0.00020547,2]
[361669564,1747678275510,-430.0,0.00020547,2]
[361669565,1747678275520,-685.18,0.00020547,2]
[361669566,1747678275529,-430.0,0.00020547,2]
[361669567,1747678275539,-817.13,0.00020547,2]
[361669568,1747678275548,-430.0,0.00020547,2]
[361669569,1747678275558,-430.0,0.00020547,2]
[361669570,1747678275568,-5294.37,0.00020547,2]
[361669571,1747678275578,-534.03,0.00020547,2]
[361669572,1747678275588,-430.0,0.00020547,2]
[361669573,1747678275597,-566.9,0.00020547,2]
[361669574,1747678275607,-430.0,0.00020547,2]
[361669575,1747678275617,-2065.21,0.00020547,2]
[361669576,1747678275627,-537.77,0.00020547,2]
[361669577,1747678275636,-430.0,0.00020547,2]
[361669578,1747678275645,-430.0,0.00020547,2]
[361669579,1747678275655,-4975.86,0.00020547,2]
[361669580,1747678275665,-430.0,0.00020547,2]
[361669581,1747678275675,-835.39,0.00020547,2]
[361669582,1747678275684,-430.0,0.00020547,2]
[361669583,1747678275694,-1400.2,0.00020547,2]
[361669584,1747678275703,-1072.15,0.00020547,2]
[361669585,1747678275713,-1314.62,0.00020547,2]
[361669586,1747678275723,-1095.34,0.00020547,2]
[361669587,1747678275732,-430.0,0.00020547,2]
[361669588,1747678275743,-1638.88,0.00020547,2]
[361669589,1747678275752,-430.0,0.00020547,2]
[361669590,1747678275761,-1009.6,0.00020547,2]
[361669591,1747678275771,-430.0,0.00020547,2]
[361669592,1747678275780,-656.69,0.00020547,2]
[361669593,1747678275791,-7287.93,0.00020547,2]
[361669594,1747678275803,-430.0,0.00020547,2]
[361669595,1747678275817,-1675.27,0.00020547,2]
[361669596,1747678275827,-430.0,0.00020547,2]
[361669597,1747678275838,-4789.9,0.00020547,2]
[361669598,1747678275848,-430.0,0.00020547,2]
[361669599,1747678275858,-430.0,0.00020547,2]
[361669600,1747678275867,-582.76,0.00020547,2]
[361669601,1747678275876,-1475.08,0.00020547,2]
[361669602,1747678275885,-430.0,0.00020547,2]
[361669603,1747678275895,-3802.2,0.00020547,2]
[361669604,1747678275904,-441.87,0.00020547,2]
[361669605,1747678275914,-2022.39,0.00020547,2]
[361669606,1747678275923,-3870.66,0.00020547,2]
[361669607,1747678275933,-4521.89,0.00020547,2]
[361669608,1747678275942,-430.0,0.00020547,2]
[361669609,1747678275952,-623.36,0.00020547,2]
[361669610,1747678275962,-430.0,0.00020547,2]
[361669611,1747678275971,-1455.67,0.00020547,2]
[361669612,1747678275983,-430.0,0.00020547,2]
[361669613,1747678275992,-1638.01,0.00020547,2]
[361669614,1747678276002,-542.53,0.00020547,2]
[361669615,1747678276011,-861.13,0.00020547,2]
[361669616,1747678276021,-430.0,0.00020547,2]
[361669617,1747678276030,-735.09,0.00020547,2]
[361669618,1747678276039,-430.0,0.00020547,2]
[361669619,1747678276048,-446.73,0.00020547,2]
[361669620,1747678276058,-430.0,0.00020547,2]
[361669621,1747678276067,-906.22,0.00020547,2]
[361669622,1747678276076,-430.0,0.00020547,2]
[361669623,1747678276086,-436.01438356,0.00020547,2]
[361669624,1747678276095,-2900.95,0.00020547,2]
[361669625,1747678276104,-430.0,0.00020547,2]
[361669626,1747678276203,-430.0,0.00020547,2]
[361669627,1747678276213,-668.98,0.00020547,2]
[361669628,1747678276222,-806.41,0.00020547,2]
[361669629,1747678276231,-430.0,0.00020547,2]
[361669630,1747678276240,-324.94098135,0.00020547,2]
[361669631,1747678276250,-430.0,0.00020547,2]
[361669632,1747678276259,-853.48,0.00020547,2]
[361669633,1747678276268,-430.0,0.00020547,2]
[361669634,1747678276278,-996.23,0.00020547,2]
[361669635,1747678276287,-1223.52,0.00020547,2]
[361669636,1747678276297,-1390.5,0.00020547,2]
[361669637,1747678276307,-401.66329212,0.00020547,2]
[361669638,1747678276316,-430.0,0.00020547,2]
[361669639,1747678276325,-430.0,0.00020547,2]
[361669640,1747678276335,-2124.49,0.00020547,2]
[361669641,1747678276344,-1409.57,0.00020547,2]
[361669642,1747678276354,-701.29,0.00020547,2]
[361669643,1747678276364,-501.83,0.00020547,2]
[361669644,1747678276373,-1561.15,0.00020547,2]
[361669645,1747678276383,-441.96,0.00020547,2]
[361669646,1747678276392,-899.12,0.00020547,2]
[361669647,1747678276401,-1104.97,0.00020547,2]
[361669648,1747678276411,-430.0,0.00020547,2]
[361669649,1747678276420,-465.61,0.00020547,2]
[361669650,1747678276429,-2522.44,0.00020547,2]
[361669651,1747678276438,-468.08,0.00020547,2]
[361669652,1747678276447,-478.87,0.00020547,2]
[361669653,1747678276456,-1119.33,0.00020547,2]
[361669654,1747678276466,-1123.5,0.00020547,2]
[361669655,1747678276475,-926.76,0.00020547,2]
[361669656,1747678276485,-561.73,0.00020547,2]
[361669657,1747678276496,-1799.58,0.00020547,2]
[361669658,1747678276505,-430.0,0.00020547,2]
[361669659,1747678276515,-2130.66,0.00020547,2]
[361669660,1747678276524,-395.00499751,0.00020547,2]
[361669661,1747678276534,-430.0,0.00020547,2]
[361669662,1747678276545,-510.7,0.00020547,2]
[361669663,1747678276555,-430.0,0.00020547,2]
[361669664,1747678276565,-1184.09,0.00020547,2]
[361669665,1747678276574,-430.0,0.00020547,2]
[361669666,1747678276583,-736.8,0.00020547,2]
[361669667,1747678276592,-581.31,0.00020547,2]
[361669668,1747678276601,-752.45,0.00020547,2]
[361669669,1747678276610,-695.3,0.00020547,2]
[361669670,1747678276619,-716.17,0.00020547,2]
[361669671,1747678276628,-1529.7,0.00020547,2]
[361669672,1747678276637,-151.0,0.00020548,2]
[361669673,1747678276646,-151.842972,0.00020548,2]
[361669674,1747678276655,-500.0,0.00020548,2]
[361669675,1747678276664,-500.0,0.00020548,2]
[361669676,1747678276673,-500.0,0.00020548,2]
[361669677,1747678276682,-500.0,0.00020548,2]
[361669678,1747678276691,-500.0,0.00020548,2]
[361669679,1747678276700,-1300.0,0.00020561,2]
[361669680,1747678276709,-2500.0,0.00020564,2]
[361669681,1747678276718,-2000.0,0.00020564,2]
[361669682,1747678276727,-358.045,0.00020604,2]
[361669683,1747678276736,-181.09,0.00020604,2]
[361669684,1747678276746,-1500.0,0.0002062,2]
[361669685,1747678276755,-1875.35,0.0002071,20]
[361669686,1747678276764,-4854.67001534,0.00020728,3]
[361669687,1747678276773,-1500.0,0.00020796,2]
[361669688,1747678276782,-1500.0,0.00020796,2]
[361669689,1747678276791,-1500.0,0.00020796,2]
[361669690,1747678276800,-1500.0,0.00020796,2]
[361669691,1747678276812,-1500.0,0.00020796,2]
[361669692,1747678276821,-1500.0,0.00020796,2]
[361669693,1747678276830,-1500.0,0.00020796,2]
[361669694,1747678276839,-3726.72473239,0.00020821,2]
[361669695,1747678276848,-430.0,0.00020821,2]
[361669696,1747678276858,-499.51,0.00020821,2]
[361669697,1747678276867,-686.82,0.00020821,2]
[361669698,1747678276875,-430.0,0.00020821,2]
[361669699,1747678276886,-430.0,0.00020821,2]
[361669700,1747678276899,-776.59,0.00020821,2]
[361669701,1747678276922,-430.0,0.00020821,2]
[361669702,1747678276939,-681.39,0.00020821,2]
[361669703,1747678276959,-430.0,0.00020821,2]
[361669704,1747678276979,-516.86,0.00020821,2]
[361669705,1747678276996,-629.1,0.00020821,2]
[361669706,1747678277014,-430.0,0.00020821,2]
[361669707,1747678277030,-1132.44,0.00020821,2]
[361669708,1747678277047,-430.0,0.00020821,2]
[361669709,1747678277066,-852.15,0.00020821,2]
[361669710,1747678277086,-430.0,0.00020821,2]
[361669711,1747678277099,-605.64,0.00020821,2]
[361669712,1747678277117,-875.09,0.00020821,2]
[361669713,1747678277131,-430.0,0.00020821,2]
[361669714,1747678277146,-430.0,0.00020821,2]
[361669715,1747678277161,-545.76,0.00020821,2]
[361669716,1747678277176,-365.58842762,0.00020821,2]
[361669717,1747678277190,-430.0,0.00020821,2]
[361669718,1747678277204,-154.83956233,0.00020821,2]
[361669719,1747678277219,-430.0,0.00020821,2]
[361669720,1747678277233,-671.94,0.00020821,2]
[361669721,1747678277247,-701.04,0.00020821,2]
[361669722,1747678277261,-430.0,0.00020821,2]
[361669723,1747678277276,-575.34,0.00020821,2]
[361669724,1747678277291,-571.44446318,0.00020821,2]
[361669725,1747678277305,-433.77,0.00020821,2]
[361669726,1747678277320,-430.0,0.00020821,2]
[361669727,1747678277335,-430.0,0.00020821,2]
[361669728,1747678277349,-430.0,0.00020821,2]
[361669729,1747678277364,-430.0,0.00020821,2]
[361669730,1747678277379,-439.55,0.00020821,2]
[361669731,1747678277393,-430.0,0.00020821,2]
[361669732,1747678277407,-451.43,0.00020821,2]
[361669733,1747678277422,-430.0,0.00020821,2]
[361669734,1747678277436,-430.0,0.00020821,2]
[361669735,1747678277450,-745.65,0.00020821,2]
[361669736,1747678277463,-430.0,0.00020821,2]
[361669737,1747678277478,-430.0,0.00020821,2]
[361669738,1747678277492,-430.0,0.00020821,2]
[361669739,1747678277508,-430.0,0.00020821,2]
[361669740,1747678277521,-438.7,0.00020821,2]
[361669741,1747678277535,-434.58,0.00020821,2]
[361669742,1747678277550,-430.0,0.00020821,2]
[361669743,1747678277564,-430.0,0.00020821,2]
[361669744,1747678277578,-1375.68,0.00020821,2]
[361669745,1747678277592,-430.0,0.00020821,2]
[361669746,1747678277606,-430.0,0.00020821,2]
[361669747,1747678277621,-551.59,0.00020821,2]
[361669748,1747678277635,-430.0,0.00020821,2]
[361669749,1747678277650,-430.0,0.00020821,2]
[361669750,1747678277664,-430.0,0.00020821,2]
[361669751,1747678277678,-430.0,0.00020821,2]
[361669752,1747678277693,-530.62,0.00020821,2]
[361669753,1747678277707,-430.0,0.00020821,2]
[361669754,1747678277721,-2065.45,0.00020821,2]
[361669755,1747678277735,-430.0,0.00020821,2]
[361669756,1747678277750,-430.0,0.00020821,2]
[361669757,1747678277765,-430.0,0.00020821,2]
[361669758,1747678277780,-2491.97,0.00020821,2]
[361669759,1747678277794,-864.52,0.00020821,2]
[361669760,1747678277810,-430.0,0.00020821,2]
[361669761,1747678277824,-637.32,0.00020821,2]
[361669762,1747678277840,-1871.71,0.00020821,2]
[361669763,1747678277855,-4063.35,0.00020821,2]
[361669764,1747678277869,-430.0,0.00020821,2]
[361669765,1747678277883,-685.18,0.00020821,2]
[361669766,1747678277897,-430.0,0.00020821,2]
[361669767,1747678277911,-817.13,0.00020821,2]
[361669768,1747678277926,-430.0,0.00020821,2]
[361669769,1747678277941,-430.0,0.00020821,2]
[361669770,1747678277954,-5294.37,0.00020821,2]
[361669771,1747678277969,-534.03,0.00020821,2]
[361669772,1747678277983,-430.0,0.00020821,2]
[361669773,1747678278141,-566.9,0.00020821,2]
[361669774,1747678278157,-430.0,0.00020821,2]
[361669775,1747678278167,-2065.21,0.00020821,2]
[361669776,1747678278177,-537.77,0.00020821,2]
[361669777,1747678278186,-430.0,0.00020821,2]
[361669778,1747678278195,-430.0,0.00020821,2]
[361669779,1747678278204,-4975.86,0.00020821,2]
[361669780,1747678278213,-430.0,0.00020821,2]
[361669781,1747678278223,-835.39,0.00020821,2]
[361669782,1747678278232,-430.0,0.00020821,2]
[361669783,1747678278241,-1400.2,0.00020821,2]
[361669784,1747678278251,-1072.15,0.00020821,2]
[361669785,1747678278260,-1314.62,0.00020821,2]
[361669786,1747678278270,-1095.34,0.00020821,2]
[361669787,1747678278279,-430.0,0.00020821,2]
[361669788,1747678278289,-1638.88,0.00020821,2]
[361669789,1747678278298,-430.0,0.00020821,2]
[361669790,1747678278308,-1009.6,0.00020821,2]
[361669791,1747678278317,-430.0,0.00020821,2]
[361669792,1747678278326,-656.69,0.00020821,2]
[361669793,1747678278335,-7287.93,0.00020821,2]
[361669794,1747678278344,-430.0,0.00020821,2]
[361669795,1747678278354,-1675.27,0.00020821,2]
[361669796,1747678278363,-430.0,0.00020821,2]
[361669797,1747678278373,-4789.9,0.00020821,2]
[361669798,1747678278383,-430.0,0.00020821,2]
[361669799,1747678278393,-430.0,0.00020821,2]
[361669800,1747678278402,-582.76,0.00020821,2]
[361669801,1747678278412,-1475.08,0.00020821,2]
[361669802,1747678278422,-430.0,0.00020821,2]
[361669803,1747678278431,-3802.2,0.00020821,2]
[361669804,1747678278440,-441.87,0.00020821,2]
[361669805,1747678278449,-2022.39,0.00020821,2]
[361669806,1747678278459,-3870.66,0.00020821,2]
[361669807,1747678278468,-4521.89,0.00020821,2]
[361669808,1747678278477,-430.0,0.00020821,2]
[361669809,1747678278486,-623.36,0.00020821,2]
[361669810,1747678278496,-430.0,0.00020821,2]
[361669811,1747678278505,-430.0,0.00020821,2]
[361669812,1747678278515,-1455.67,0.00020821,2]
[361669813,1747678278525,-1638.01,0.00020821,2]
[361669814,1747678278535,-542.53,0.00020821,2]
[361669815,1747678278545,-861.13,0.00020821,2]
[361669816,1747678278555,-430.0,0.00020821,2]
[361669817,1747678278565,-735.09,0.00020821,2]
[361669818,1747678278575,-430.0,0.00020821,2]
[361669819,1747678278586,-446.73,0.00020821,2]
[361669820,1747678278596,-430.0,0.00020821,2]
[361669821,1747678278605,-906.22,0.00020821,2]
[361669822,1747678278616,-430.0,0.00020821,2]
[361669823,1747678278625,-2900.95,0.00020821,2]
[361669824,1747678278634,-430.0,0.00020821,2]
[361669825,1747678278644,-430.0,0.00020821,2]
[361669826,1747678278653,-668.98,0.00020821,2]
[361669827,1747678278663,-806.41,0.00020821,2]
[361669828,1747678278673,-430.0,0.00020821,2]
[361669829,1747678278682,-430.0,0.00020821,2]
[361669830,1747678278691,-853.48,0.00020821,2]
[361669831,1747678278701,-430.0,0.00020821,2]
[361669832,1747678278711,-996.23,0.00020821,2]
[361669833,1747678278721,-1223.52,0.00020821,2]
[361669834,1747678278731,-1390.5,0.00020821,2]
[361669835,1747678278740,-430.0,0.00020821,2]
[361669836,1747678278749,-430.0,0.00020821,2]
[361669837,1747678278759,-2124.49,0.00020821,2]
[361669838,1747678278769,-1409.57,0.00020821,2]
[361669839,1747678278779,-701.29,0.00020821,2]
[361669840,1747678278790,-501.83,0.00020821,2]
[361669841,1747678278799,-1561.15,0.00020821,2]
[361669842,1747678278812,-441.96,0.00020821,2]
[361669843,1747678278822,-899.12,0.00020821,2]
[361669844,1747678278831,-1104.97,0.00020821,2]
[361669845,1747678278840,-430.0,0.00020821,2]
[361669846,1747678278850,-2522.44,0.00020821,2]
[361669847,1747678278860,-468.08,0.00020821,2]
[361669848,1747678278869,-478.87,0.00020821,2]
[361669849,1747678278879,-1119.33,0.00020821,2]
[361669850,1747678278889,-1123.5,0.00020821,2]
[361669851,1747678278899,-926.76,0.00020821,2]
[361669852,1747678278908,-561.73,0.00020821,2]
[361669853,1747678278918,-1799.58,0.00020821,2]
[361669854,1747678278932,-430.0,0.00020821,2]
[361669855,1747678278941,-2130.66,0.00020821,2]
[361669856,1747678278951,-430.0,0.00020821,2]
[361669857,1747678278961,-510.7,0.00020821,2]
[361669858,1747678278971,-430.0,0.00020821,2]
[361669859,1747678278981,-1184.09,0.00020821,2]
[361669860,1747678278990,-430.0,0.00020821,2]
[361669861,1747678279002,-736.8,0.00020821,2]
[361669862,1747678279012,-581.31,0.00020821,2]
[361669863,1747678279021,-752.45,0.00020821,2]
[361669864,1747678279031,-695.3,0.00020821,2]
[361669865,1747678279041,-716.17,0.00020821,2]
[361669866,1747678279050,-1529.7,0.00020821,2]
[361669867,1747678279059,-912.6682423,0.00020864,2]
[361669868,1747678279069,-2510.48819335,0.00020864,2]
[361669869,1747678279079,-2500.0,0.00020864,2]
[361669870,1747678279088,-2500.0,0.00020864,2]
[361669871,1747678279098,-504.70443501,0.00020864,2]
[361669872,1747678279108,-2500.0,0.00020864,2]
[361669873,1747678279118,-286.4936627,0.00020864,2]
[361669874,1747678279129,-2000.0,0.00020864,2]
[361669875,1747678279138,-2500.0,0.00020864,2]
[361669876,1747678279148,-2500.0,0.00020864,2]
[361669877,1747678279157,-703.92295147,0.00020864,2]
[361669878,1747678279167,-570.35,0.000209,14]
[361669879,1747678279177,-1000.0,0.00020953,2]
[361669880,1747678279186,-500.0,0.00020986,2]
[361669881,1747678279195,-500.0,0.00020986,2]
[361669882,1747678279205,-500.0,0.00020986,2]
[361669883,1747678279215,-500.0,0.00020986,2]
[361669884,1747678279225,-500.0,0.00020986,2]
[361669885,1747678279234,-500.0,0.00020986,2]
[361669886,1747678279244,-500.0,0.00020986,2]
[361669887,1747678279257,-500.0,0.00020986,2]
[361669888,1747678279268,-500.0,0.00020986,2]
[361669889,1747678279278,-500.0,0.00020986,2]
[361669890,1747678279287,-8847.19812869,0.00021,5]
[361669891,1747678279297,-3000.0,0.00021,2]
[361669892,1747678279307,-4000.0,0.00021,4]
[361669893,1747678279317,-3000.0,0.0002101,2]
[361669894,1747678279327,-3000.0,0.0002102,2]
[361669895,1747678279337,-3000.0,0.0002103,2]
[361669896,1747678279346,-3000.0,0.0002104,2]
[361669897,1747678279355,-3000.0,0.0002105,2]
[361669898,1747678279365,-1000.0,0.00021053,2]
[361669899,1747678279375,-1066.47237652,0.00021053,2]
[361669900,1747678279385,-1000.0,0.00021053,2]
[361669901,1747678279395,-1000.0,0.00021053,2]
[361669902,1747678279405,-1000.0,0.00021053,2]
[361669903,1747678279414,-1000.0,0.00021053,2]
[361669904,1747678279424,-1200.0,0.00021053,2]
[361669905,1747678279435,-1000.0,0.00021057,2]
[361669906,1747678279444,-1000.0,0.00021057,2]
[361669907,1747678279454,-3000.0,0.0002106,2]
[361669908,1747678279463,-10872.38156819,0.00021067,2]
[361669909,1747678279473,-3000.0,0.0002107,2]
[361669910,1747678279483,-1000.0,0.00021078,2]
[361669911,1747678279492,-3000.0,0.0002108,2]
[361669912,1747678279506,-3000.0,0.0002109,2]
[361669913,1747678279516,-1000.0,0.00021093,2]
[361669914,1747678279526,-1000.0,0.00021093,2]
[361669915,1747678279535,-370.04080082,0.00021093,2]
[361669916,1747678279545,-1000.0,0.00021093,2]
[361669917,1747678279554,-534.05332739,0.00021093,2]
[361669918,1747678279563,-1000.0,0.00021093,2]
[361669919,1747678279573,-627.86196173,0.00021093,2]
[361669920,1747678279583,-785.31319422,0.00021093,2]
[361669921,1747678279593,-1026.41580435,0.00021093,2]
[361669922,1747678279602,-1000.0,0.00021093,2]
[361669923,1747678279612,-1000.0,0.00021093,2]
[361669924,1747678279622,-512.0959228,0.00021093,2]
[361669925,1747678279632,-344.36423285,0.00021093,2]
[361669926,1747678279641,-265.52383053,0.00021093,2]
[361669927,1747678279650,-916.75696027,0.00021093,2]
[361669928,1747678279660,-1000.0,0.00021093,2]
[361669929,1747678279670,-1000.0,0.00021093,2]
[361669930,1747678279680,-1000.0,0.00021093,2]
[361669931,1747678279690,-1000.0,0.00021093,2]
[361669932,1747678279700,-1000.0,0.00021093,2]
[361669933,1747678279709,-641.74190364,0.00021093,2]
[361669934,1747678279718,-661.45419888,0.00021093,2]
[361669935,1747678279728,-1016.69039241,0.00021093,2]